bitfinex-derivatives/quotes_SOLF0:USTF0_20250516
["timestamp","ask_amount","ask_price","bid_price","bid_amount"]
[1747367595201,5.7844,172.84,172.8,5.7854]
[1747367595398,67.48,172.84,172.77,68.54]
[1747367596203,136.04,172.85,172.77,68.54]
[1747367596395,204.77070401,172.98,172.8,6.78400897]
[1747367596597,5.7803,172.96,172.83,6.78400897]
[1747367596799,280.08357034,172.98,172.84,68.54]
[1747367596993,69.22,172.97,172.84,68.54]
[1747367597204,5.7807,172.95,172.84,68.54]
[1747367597397,69.14,172.94,172.84,68.54]
[1747367597802,69.14,172.94,172.91,5.7819]
[1747367598406,69.14,172.94,172.88,5.7827]
[1747367599305,74.921,172.94,172.88,5.7827]
[1747367600203,69.14,172.94,172.87,5.7832]
[1747367600403,69.14,172.94,172.84,68.54]
[1747367600799,5.7819,172.92,172.86,5.7833]
[1747367601308,5.7819,172.92,172.87,5.7832]
[1747367601807,5.7814,172.93,172.87,5.7832]
[1747367602106,5.7814,172.93,172.88,5.7828]
[1747367602305,5.7823,172.91,172.84,68.54]
[1747367602507,69.14,172.94,172.87,5.7833]
[1747367602804,5.7817,172.92,172.87,5.7833]
[1747367603107,71.4,173.0,172.93,5.781]
[1747367603308,71.4,173.0,172.88,5.8344]
[1747367603509,71.4,173.0,172.91,5.782]
[1747367603704,71.4,173.0,172.89,71.38]
[1747367605215,5.7803,172.97,172.89,71.38]
[1747367605607,72.56,172.99,172.89,71.38]
[1747367606011,78.3394,172.99,172.89,71.38]
[1747367606813,79.33274768,172.99,172.89,71.38]
[1747367607213,5.7806,172.96,172.9,5.782]
[1747367608114,5.7806,172.96,172.91,5.7819]
[1747367608516,5.7807,172.95,172.91,5.7819]
[1747367608716,5.7807,172.95,172.9,5.7823]
[1747367609020,71.36,172.97,172.88,3.9067]
[1747367609210,5.7813,172.94,172.88,3.9067]
[1747367609411,77.9813,172.94,172.89,5.7824]
[1747367611417,5.7815,172.93,172.88,9.6896]
[1747367611818,5.7815,172.93,172.88,3.9067]
[1747367612621,5.7815,172.93,172.89,5.7826]
[1747367613011,77.981,172.94,172.89,5.7826]
[1747367613212,77.981,172.94,172.9,5.7822]
[1747367613418,77.981,172.94,172.88,3.9067]
[1747367613618,77.981,172.94,172.89,5.7826]
[1747367614420,5.7814,172.93,172.89,5.7826]
[1747367614621,72.2,172.94,172.89,5.7826]
[1747367615519,77.9812,172.94,172.9,5.7823]
[1747367616419,5.7813,172.93,172.88,9.6894]
[1747367616719,5.7813,172.93,172.88,3.9067]
[1747367617021,77.981,172.94,172.89,5.7823]
[1747367618320,77.981,172.94,172.9,5.7822]
[1747367622024,72.2,172.94,172.85,71.36]
[1747367622637,5.7823,172.9,172.86,5.7835]
[1747367623425,71.36,172.92,172.84,5.7843]
[1747367623622,71.36,172.92,172.82,3.9305]
[1747367623824,6.77274768,172.9,172.81,71.36]
[1747367624024,5.7835,172.87,172.82,5.7849]
[1747367624216,5.7835,172.87,172.81,71.36]
[1747367624217,70.8,172.89,172.77,578.09274768]
[1747367624423,5.7837,172.86,172.77,578.09274768]
[1747367624618,70.8,172.89,172.77,578.09274768]
[1747367625125,5.7834,172.87,172.82,5.7849]
[1747367625325,70.8,172.89,172.77,578.09274768]
[1747367626130,5.7834,172.87,172.77,578.09274768]
[1747367626522,70.8,172.89,172.77,578.09274768]
[1747367627527,5.7834,172.87,172.82,5.7847]
[1747367627930,5.7834,172.87,172.77,578.09274768]
[1747367628228,5.7834,172.87,172.82,5.7848]
[1747367628430,5.7831,172.88,172.77,578.09274768]
[1747367628732,5.7831,172.88,172.82,5.7847]
[1747367629128,5.7831,172.88,172.77,578.09274768]
[1747367629535,5.7831,172.88,172.83,5.7846]
[1747367630429,5.7836,172.87,172.82,5.7849]
[1747367631931,76.583,172.89,172.83,5.7843]
[1747367632535,5.7832,172.88,172.84,5.7842]
[1747367632727,70.8,172.89,172.77,578.09274768]
[1747367632933,69.92,172.89,172.77,578.09274768]
[1747367634133,69.92,172.89,172.85,5.7837]
[1747367634933,5.7826,172.9,172.85,5.7837]
[1747367635134,69.76,172.89,172.85,5.7837]
[1747367635527,75.5428,172.89,172.84,5.7842]
[1747367635836,69.76,172.89,172.77,578.09274768]
[1747367636031,5.7857,172.8,172.64,11.5821]
[1747367636235,71.0,172.8,172.71,1.9744]
[1747367637540,5.7867,172.77,172.71,1.9744]
[1747367637736,71.0,172.8,172.71,1.9744]
[1747367638336,5.7873,172.76,172.71,7.7628]
[1747367638843,5.7874,172.75,172.71,1.9744]
[1747367639037,76.8474,172.75,172.66,6.78570492]
[1747367639236,76.8474,172.75,172.67,1.9342]
[1747367639640,71.06,172.75,172.67,7.7239]
[1747367640841,5.7883,172.72,172.67,7.7239]
[1747367643144,5.7888,172.71,172.67,7.7239]
[1747367643746,5.7888,172.71,172.67,5.7897]
[1747367644447,5.7884,172.72,172.68,5.7895]
[1747367645548,5.7881,172.73,172.68,5.7895]
[1747367649851,5.7883,172.72,172.68,5.7895]
[1747367652353,69.96,172.72,172.65,3.7241]
[1747367652556,69.96,172.72,172.65,1.858]
[1747367653051,69.96,172.72,172.61,71.8421]
[1747367653255,6.78570492,172.7,172.61,73.7752]
[1747367653551,5.79,172.67,172.63,5.7913]
[1747367654955,69.46,172.69,172.61,3.8152]
[1747367655551,5.7907,172.66,172.61,9.607]
[1747367655754,5.7907,172.66,172.61,3.8152]
[1747367656258,5.7907,172.65,172.62,5.7916]
[1747367656559,5.7907,172.65,172.61,3.8152]
[1747367656757,69.98,172.67,172.61,3.8152]
[1747367657457,5.7907,172.66,172.62,5.7916]
[1747367659054,5.7907,172.65,172.61,9.6071]
[1747367659560,5.7904,172.66,172.62,5.7916]
[1747367659857,69.98,172.67,172.61,3.8152]
[1747367660060,5.7903,172.66,172.63,5.7913]
[1747367660261,69.98,172.67,172.63,5.7913]
[1747367660461,69.98,172.67,172.61,3.8152]
[1747367661963,75.7701,172.67,172.61,3.8152]
[1747367662458,69.98,172.67,172.61,3.8152]
[1747367662961,5.7909,172.65,172.61,9.6072]
[1747367663160,68.62,172.64,172.61,9.6072]
[1747367663763,74.411,172.64,172.61,5.792]
[1747367666363,74.411,172.64,172.6,5.7923]
[1747367666661,68.62,172.64,172.55,3.8491]
[1747367667756,5.7921,172.61,172.57,5.7933]
[1747367668057,75.40570492,172.64,172.55,3.8491]
[1747367668262,68.56,172.62,172.55,3.8491]
[1747367668859,5.7925,172.6,172.56,5.7935]
[1747367671760,5.7921,172.61,172.57,5.7933]
[1747367671958,68.56,172.62,172.55,3.8491]
[1747367672365,74.3518,172.62,172.57,5.7933]
[1747367672964,74.3518,172.62,172.58,5.793]
[1747367673162,5.792,172.61,172.55,3.8491]
[1747367674364,5.792,172.61,172.57,5.7931]
[1747367674863,74.3517,172.62,172.58,5.7929]
[1747367675065,68.56,172.62,172.55,3.8491]
[1747367675465,5.7921,172.61,172.57,5.7933]
[1747367676164,5.7924,172.6,172.57,5.7933]
[1747367676362,67.34,172.59,172.57,5.7933]
[1747367676562,67.34,172.59,172.56,5.7936]
[1747367679668,67.34,172.59,172.55,3.8491]
[1747367679865,67.34,172.59,172.54,5.7941]
[1747367680568,5.793,172.58,172.54,5.7941]
[1747367681066,67.34,172.59,172.51,1.9628]
[1747367682062,67.34,172.59,172.56,5.7935]
[1747367682771,67.34,172.59,172.57,5.7933]
[1747367684171,67.34,172.59,172.56,5.7937]
[1747367685274,67.34,172.59,172.57,5.7932]
[1747367688569,68.56,172.62,172.57,5.7932]
[1747367688769,72.032,172.61,172.57,5.7932]
[1747367690478,5.7925,172.6,172.57,5.7932]
[1747367691174,5.7925,172.6,172.56,5.7936]
[1747367691972,66.24,172.61,172.51,1.9628]
[1747367692881,72.0321,172.61,172.57,5.7932]
[1747367693581,5.7921,172.61,172.57,5.7932]
[1747367693782,65.8,172.6,172.58,5.793]
[1747367694183,65.8,172.6,172.51,1.9628]
[1747367694883,71.5924,172.6,172.51,1.9628]
[1747367695080,71.5924,172.6,172.56,5.7935]
[1747367695788,71.5924,172.6,172.57,5.7933]
[1747367696486,65.8,172.6,172.58,5.793]
[1747367696678,65.8,172.6,172.51,1.9628]
[1747367697386,65.8,172.6,172.57,5.7933]
[1747367700482,65.28,172.6,172.51,74.60850492]
[1747367700883,65.28,172.6,172.59,5.7927]
[1747367701187,65.42,172.64,172.56,65.86]
[1747367701381,65.42,172.64,172.57,3.8667]
[1747367701580,65.42,172.64,172.62,5.7914]
[1747367701782,65.42,172.64,172.57,3.8667]
[1747367702090,65.86,172.66,172.58,1.8978]
[1747367702485,65.86,172.7,172.6,6.78570492]
[1747367702682,65.3,172.68,172.6,6.78570492]
[1747367702879,65.3,172.68,172.58,67.1978]
[1747367703190,65.3,172.68,172.65,5.7904]
[1747367703490,222.50083251,172.69,172.61,65.86]
[1747367703683,71.0497,172.68,172.63,5.7913]
[1747367703884,71.0497,172.68,172.61,65.86]
[1747367704083,5.7897,172.68,172.61,65.86]
[1747367704289,5.7897,172.68,172.63,5.7911]
[1747367704889,5.7897,172.68,172.61,65.86]
[1747367705892,222.50083251,172.69,172.61,65.86]
[1747367705893,228.29023251,172.69,172.64,5.7907]
[1747367706086,222.50083251,172.69,172.64,5.7907]
[1747367707292,5.7897,172.68,172.64,5.7907]
[1747367708587,222.50083251,172.69,172.61,65.86]
[1747367708985,157.26083251,172.69,172.61,65.86]
[1747367709291,222.16083251,172.69,172.61,65.86]
[1747367710181,222.16083251,172.69,172.64,5.7908]
[1747367710491,222.16083251,172.69,172.61,65.86]
[1747367711292,222.16083251,172.69,172.66,5.7901]
[1747367712494,222.16083251,172.69,172.65,5.7906]
[1747367712990,227.95043251,172.69,172.64,5.7909]
[1747367713392,222.16083251,172.69,172.64,5.7909]
[1747367713599,5.79,172.67,172.63,5.7913]
[1747367714091,5.7903,172.66,172.63,5.7913]
[1747367714300,222.16083251,172.69,172.61,71.6517]
[1747367714698,222.16083251,172.69,172.61,5.7917]
[1747367715098,222.16083251,172.69,172.6,5.7923]
[1747367715293,222.16083251,172.69,172.58,1.8978]
[1747367715696,222.16083251,172.69,172.62,5.7915]
[1747367715898,5.7903,172.67,172.58,1.8978]
[1747367716197,222.16083251,172.69,172.58,1.8978]
[1747367716997,222.16083251,172.69,172.67,5.79]
[1747367717893,157.26083251,172.69,172.67,5.79]
[1747367718195,221.58083251,172.69,172.68,5.7897]
[1747367720496,157.26083251,172.69,172.68,5.7897]
[1747367722500,157.26083251,172.69,172.62,65.84]
[1747367722800,157.26083251,172.69,172.67,5.7899]
[1747367723403,157.26083251,172.69,172.66,5.7903]
[1747367723600,157.26083251,172.69,172.62,65.84]
[1747367724001,157.26083251,172.69,172.67,5.79]
[1747367724302,157.26083251,172.69,172.62,65.84]
[1747367724801,157.26083251,172.69,172.68,5.7897]
[1747367730512,64.06,172.74,172.64,6.78570492]
[1747367730710,63.66,172.74,172.65,1.9386]
[1747367731009,63.62,172.75,172.73,5.7879]
[1747367732210,63.62,172.75,172.74,5.7877]
[1747367732512,127.6,172.76,172.74,5.7877]
[1747367733114,64.06,172.76,172.74,5.7877]
[1747367733315,127.52,172.76,172.73,5.7879]
[1747367733612,133.307,172.76,172.67,64.06]
[1747367733815,133.307,172.76,172.72,5.7881]
[1747367734114,127.52,172.76,172.67,64.06]
[1747367734915,127.5,172.76,172.74,5.7875]
[1747367735514,127.5,172.76,172.73,5.7879]
[1747367739919,64.06,172.76,172.75,5.7873]
[1747367740113,64.06,172.76,172.67,134.28570492]
[1747367740514,63.1,172.77,172.75,5.7873]
[1747367742522,5.7864,172.78,172.75,5.7873]
[1747367742718,68.7264,172.78,172.74,5.7876]
[1747367744026,68.7264,172.78,172.75,5.7873]
[1747367745427,5.7864,172.78,172.75,5.7873]
[1747367745724,68.5464,172.78,172.75,5.7873]
[1747367747430,68.5464,172.78,172.74,5.7876]
[1747367750030,5.7867,172.77,172.74,5.7876]
[1747367750227,62.76,172.78,172.67,134.28570492]
[1747367750426,62.76,172.78,172.67,64.06]
[1747367750624,5.7876,172.75,172.67,64.06]
[1747367750824,62.76,172.78,172.72,5.7881]
[1747367752022,62.76,172.78,172.73,5.788]
[1747367752833,5.7869,172.77,172.73,5.788]
[1747367753133,62.76,172.78,172.67,64.06]
[1747367753529,62.76,172.78,172.67,126.44]
[1747367753731,62.76,172.78,172.75,5.7871]
[1747367754937,5.786,172.79,172.75,5.7871]
[1747367755233,62.3,172.77,172.75,5.7871]
[1747367756332,62.3,172.77,172.76,5.787]
[1747367756534,5.786,172.79,172.76,5.787]
[1747367756837,68.066,172.79,172.76,5.787]
[1747367757737,68.066,172.79,172.75,5.7871]
[1747367757939,5.7863,172.78,172.75,5.7871]
[1747367758942,67.9463,172.78,172.75,5.7871]
[1747367759340,62.16,172.78,172.75,5.7871]
[1747367760241,67.9463,172.78,172.75,5.7871]
[1747367760443,62.08,172.78,172.75,5.7871]
[1747367761743,62.08,172.78,172.76,5.7869]
[1747367761934,62.08,172.78,172.72,3.6665]
[1747367762641,69.8257,172.8,172.72,3.6665]
[1747367762842,62.06,172.79,172.72,3.6665]
[1747367763943,62.06,172.79,172.76,5.7867]
[1747367764141,5.786,172.79,172.76,5.7867]
[1747367764341,67.846,172.79,172.72,3.6665]
[1747367765544,67.846,172.79,172.75,5.7871]
[1747367765942,69.8257,172.8,172.72,3.6665]
[1747367766145,62.06,172.79,172.72,3.6665]
[1747367766442,62.06,172.79,172.72,5.5896]
[1747367766647,62.06,172.79,172.76,5.7869]
[1747367767946,62.06,172.79,172.72,5.5896]
[1747367771148,62.06,172.79,172.73,5.7878]
[1747367771352,62.06,172.79,172.72,5.5896]
[1747367771644,68.84570492,172.79,172.71,62.34]
[1747367771849,5.7877,172.75,172.7,5.7887]
[1747367772051,62.06,172.75,172.7,5.7887]
[1747367772644,62.06,172.75,172.67,62.32]
[1747367773355,5.7884,172.72,172.68,5.7894]
[1747367777855,5.7888,172.71,172.68,5.7894]
[1747367778052,62.06,172.75,172.67,68.11]
[1747367778556,5.7887,172.71,172.67,68.11]
[1747367778852,67.8487,172.71,172.67,68.11]
[1747367779253,62.06,172.71,172.68,5.7896]
[1747367779549,62.06,172.71,172.67,62.32]
[1747367779952,62.06,172.71,172.68,5.7896]
[1747367781353,62.06,172.71,172.67,5.7899]
[1747367781549,62.06,172.71,172.64,62.34]
[1747367782253,5.7894,172.69,172.65,5.7904]
[1747367782754,5.7894,172.69,172.64,62.34]
[1747367783053,5.7891,172.7,172.66,5.7903]
[1747367783656,62.06,172.71,172.64,62.34]
[1747367784356,62.06,172.71,172.69,5.7891]
[1747367785448,62.34,172.72,172.69,5.7891]
[1747367786260,62.34,172.72,172.68,5.7896]
[1747367786559,68.1287,172.72,172.64,62.34]
[1747367787056,68.1287,172.72,172.68,5.7897]
[1747367787250,62.34,172.72,172.64,62.34]
[1747367787758,68.1284,172.72,172.64,62.34]
[1747367788659,68.1284,172.72,172.67,5.7898]
[1747367789459,68.1284,172.72,172.68,5.7897]
[1747367790355,62.34,172.72,172.67,5.7899]
[1747367790554,62.34,172.72,172.64,62.34]
[1747367791061,5.7893,172.7,172.65,5.7906]
[1747367791258,5.7893,172.7,172.64,62.34]
[1747367791454,62.34,172.72,172.64,62.34]
[1747367792664,5.7894,172.69,172.65,5.7906]
[1747367792961,62.34,172.72,172.64,62.34]
[1747367793562,5.7893,172.7,172.65,5.7906]
[1747367793964,62.34,172.72,172.64,62.34]
[1747367795664,62.34,172.72,172.64,68.1309]
[1747367797561,5.7896,172.69,172.64,68.1309]
[1747367797760,62.04,172.68,172.64,68.1309]
[1747367798366,67.8297,172.68,172.64,68.1309]
[1747367798764,62.04,172.68,172.65,5.7906]
[1747367799360,62.04,172.68,172.66,5.7903]
[1747367799766,62.34,172.72,172.64,62.34]
[1747367799962,124.38,172.72,172.68,5.7894]
[1747367800161,124.38,172.72,172.64,62.34]
[1747367801468,124.38,172.72,172.69,5.7893]
[1747367802768,130.1683,172.72,172.69,5.7893]
[1747367803470,5.7887,172.71,172.68,5.7896]
[1747367804670,130.1684,172.72,172.68,5.7896]
[1747367805362,68.1284,172.72,172.68,5.7896]
[1747367805563,62.02,172.71,172.68,5.7896]
[1747367806973,67.8087,172.71,172.68,5.7896]
[1747367807175,62.02,172.71,172.68,5.7896]
[1747367807675,62.02,172.71,172.67,5.7897]
[1747367807876,62.02,172.71,172.64,62.34]
[1747367808173,67.809,172.71,172.64,62.34]
[1747367808376,62.02,172.71,172.64,62.34]
[1747367808672,62.34,172.72,172.64,62.34]
[1747367809271,62.34,172.72,172.71,5.7887]
[1747367809874,62.0,172.74,172.71,5.7887]
[1747367811479,67.7877,172.74,172.71,5.7887]
[1747367811777,62.0,172.74,172.64,62.34]
[1747367812173,5.7882,172.73,172.64,62.34]
[1747367812876,5.7882,172.73,172.69,5.7891]
[1747367813981,5.7882,172.73,172.7,5.789]
[1747367814180,5.7884,172.72,172.64,62.34]
[1747367814387,62.0,172.74,172.64,62.34]
[1747367814977,5.7889,172.71,172.64,62.34]
[1747367815278,5.7889,172.71,172.67,5.7899]
[1747367816082,5.7889,172.71,172.68,5.7896]
[1747367816281,123.96,172.7,172.6,70.52074455]
[1747367816481,123.96,172.69,172.6,72.47514455]
[1747367816678,5.7899,172.68,172.63,5.791]
[1747367817181,5.7901,172.67,172.63,5.7911]
[1747367817679,123.96,172.69,172.65,5.7905]
[1747367817984,129.7496,172.69,172.65,5.7905]
[1747367821986,129.7496,172.69,172.66,5.7903]
[1747367822279,129.7496,172.69,172.61,63.7903]
[1747367822473,129.7496,172.69,172.65,5.7906]
[1747367823582,61.98,172.69,172.61,63.7903]
[1747367823786,61.96,172.71,172.61,70.57600492]
[1747367824088,61.96,172.71,172.62,61.96]
[1747367825187,61.96,172.72,172.64,6.78570492]
[1747367825384,61.96,172.72,172.65,1.8263]
[1747367825589,61.96,172.72,172.7,5.789]
[1747367825784,61.96,172.72,172.66,1.8523]
[1747367826182,61.98,172.73,172.7,5.7888]
[1747367826387,123.94,172.73,172.7,5.7888]
[1747367827091,123.94,172.73,172.67,1.8757]
[1747367827282,123.94,172.73,172.65,61.98]
[1747367827481,123.94,172.73,172.62,63.7923]
[1747367827790,130.72570492,172.73,172.62,63.7923]
[1747367828388,130.72570492,172.73,172.64,5.7909]
[1747367828889,5.7897,172.69,172.64,5.7909]
[1747367829090,61.94,172.68,172.64,5.7909]
[1747367829291,61.94,172.68,172.65,5.7906]
[1747367829692,5.7902,172.67,172.62,1.8523]
[1747367829887,5.7902,172.67,172.63,5.7912]
[1747367830087,5.7902,172.67,172.61,61.98]
[1747367830892,67.7298,172.68,172.64,5.7909]
[1747367831894,61.94,172.68,172.61,61.98]
[1747367832795,61.94,172.68,172.65,5.7905]
[1747367832994,67.7694,172.69,172.61,61.98]
[1747367833188,61.92,172.68,172.61,61.98]
[1747367833897,67.7097,172.68,172.64,5.7907]
[1747367834194,61.92,172.68,172.64,5.7907]
[1747367834597,5.7901,172.67,172.62,5.7914]
[1747367834896,5.7901,172.67,172.61,61.98]
[1747367835096,5.7903,172.66,172.62,5.7916]
[1747367835291,61.92,172.68,172.61,61.98]
[1747367835497,61.92,172.68,172.6,1.8757]
[1747367835797,5.7909,172.65,172.61,5.7918]
[1747367835998,61.92,172.64,172.61,5.7918]
[1747367836390,61.92,172.64,172.62,5.7917]
[1747367837797,61.92,172.64,172.61,5.792]
[1747367840506,67.711,172.64,172.61,5.792]
[1747367841908,61.92,172.64,172.61,5.792]
[1747367842107,61.92,172.64,172.62,5.7916]
[1747367843005,61.92,172.64,172.61,5.7919]
[1747367844611,67.7111,172.64,172.61,5.7919]
[1747367845511,61.92,172.64,172.6,1.8757]
[1747367846513,61.92,172.64,172.61,5.792]
[1747367846713,61.92,172.64,172.59,1.9268]
[1747367847613,67.7113,172.64,172.6,5.7921]
[1747367848308,67.7113,172.64,172.57,62.0]
[1747367848309,5.7914,172.63,172.57,62.0]
[1747367848515,61.92,172.64,172.58,5.7928]
[1747367849013,5.7919,172.62,172.58,5.7928]
[1747367849514,5.7917,172.62,172.59,5.7926]
[1747367849814,5.7917,172.62,172.55,1.8745]
[1747367850014,61.92,172.64,172.55,1.8745]
[1747367850206,5.7924,172.6,172.56,5.7936]
[1747367850512,61.86,172.59,172.53,61.88]
[1747367851014,5.7933,172.58,172.54,5.7941]
[1747367851622,5.7933,172.58,172.55,5.794]
[1747367851815,67.6528,172.59,172.55,5.794]
[1747367852014,61.86,172.59,172.55,5.794]
[1747367853620,5.7931,172.58,172.55,5.794]
[1747367856025,5.7931,172.58,172.5,1.9346]
[1747367856026,5.7931,172.58,172.54,5.7943]
[1747367856321,5.7931,172.58,172.5,1.9346]
[1747367856522,5.7931,172.58,172.54,5.7941]
[1747367856722,61.86,172.59,172.5,1.9346]
[1747367857023,61.86,172.59,172.57,5.7933]
[1747367857719,61.86,172.59,172.56,5.7936]
[1747367859725,67.6527,172.59,172.56,5.7936]
[1747367859920,67.6527,172.59,172.55,5.794]
[1747367860119,67.6527,172.59,172.5,1.9346]
[1747367860120,61.86,172.59,172.5,1.9346]
[1747367860520,5.7931,172.58,172.5,1.9346]
[1747367860724,61.86,172.59,172.5,1.9346]
[1747367861125,5.7931,172.58,172.54,5.7943]
[1747367863125,5.7931,172.58,172.55,5.794]
[1747367863327,5.7931,172.58,172.5,1.9346]
[1747367864630,5.7931,172.58,172.54,5.7943]
[1747367866434,5.7931,172.58,172.55,5.794]
[1747367867635,67.6528,172.59,172.55,5.794]
[1747367867935,61.86,172.59,172.56,5.7935]
[1747367868232,61.8,172.59,172.52,6.78570492]
[1747367868733,61.88,172.61,172.53,61.9]
[1747367868930,61.8,172.6,172.53,61.9]
[1747367869231,61.8,172.6,172.58,5.7928]
[1747367871233,61.8,172.6,172.59,5.7927]
[1747367871729,61.88,172.61,172.59,5.7927]
[1747367871930,61.88,172.61,172.6,5.7924]
[1747367872134,500.46,172.69,172.53,61.9]
[1747367872432,123.68,172.68,172.55,6.78570492]
[1747367872636,123.68,172.68,172.56,5.7434]
[1747367873137,5.7912,172.64,172.56,5.7434]
[1747367873335,61.78,172.63,172.56,5.7434]
[1747367873736,61.78,172.63,172.58,5.793]
[1747367874636,5.7919,172.62,172.58,5.793]
[1747367875537,5.7921,172.61,172.58,5.793]
[1747367875737,5.7921,172.61,172.57,5.7933]
[1747367876436,5.7924,172.6,172.57,5.7933]
[1747367876633,61.78,172.63,172.57,5.7933]
[1747367877438,5.7922,172.61,172.57,5.7933]
[1747367878139,61.78,172.63,172.56,5.7434]
[1747367878335,61.9,172.64,172.56,5.7434]
[1747367878543,61.76,172.63,172.56,5.7434]
[1747367878742,61.76,172.63,172.62,5.7917]
[1747367880741,61.76,172.63,172.61,5.7919]
[1747367881040,61.76,172.63,172.57,61.76]
[1747367881234,61.76,172.63,172.6,5.7921]
[1747367883841,67.691,172.64,172.6,5.7921]
[1747367884043,129.411,172.64,172.6,5.7921]
[1747367884545,5.7915,172.63,172.59,5.7927]
[1747367884847,123.62,172.64,172.57,61.76]
[1747367885538,5.7917,172.62,172.58,5.7927]
[1747367888647,5.7914,172.63,172.59,5.7924]
[1747367892348,5.7914,172.63,172.6,5.7923]
[1747367893347,625.31078803,172.69,172.57,61.76]
[1747367893545,61.68,172.71,172.61,6.78570492]
[1747367893746,61.68,172.71,172.62,65.537]
[1747367894249,61.68,172.71,172.63,1.9196]
[1747367895147,61.68,172.71,172.66,5.7901]
[1747367895448,61.66,172.7,172.63,1.9196]
[1747367895644,61.66,172.7,172.69,5.7893]
[1747367896046,61.66,172.7,172.63,1.9196]
[1747367896443,61.66,172.7,172.67,5.7899]
[1747367899850,61.66,172.7,172.65,5.7904]
[1747367900050,61.66,172.7,172.63,1.9196]
[1747367901050,5.7894,172.69,172.64,5.7907]
[1747367901244,5.7894,172.69,172.63,1.9196]
[1747367901754,5.7894,172.69,172.64,5.7908]
[1747367902054,5.7894,172.69,172.63,1.9196]
[1747367903557,5.7894,172.69,172.65,5.7907]
[1747367905457,5.7897,172.68,172.64,5.791]
[1747367906564,61.66,172.7,172.62,3.797]
[1747367906859,61.62,172.68,172.61,61.74]
[1747367908662,5.7906,172.66,172.63,5.7913]
[1747367908862,67.4106,172.66,172.63,5.7913]
[1747367909665,67.4106,172.66,172.62,5.7916]
[1747367911761,61.62,172.66,172.61,67.532]
[1747367912066,61.62,172.66,172.61,5.792]
[1747367912560,5.791,172.64,172.61,5.792]
[1747367913972,5.7908,172.65,172.61,5.792]
[1747367917375,5.7908,172.65,172.62,5.7916]
[1747367923074,5.791,172.64,172.6,5.792]
[1747367923373,61.62,172.66,172.57,61.62]
[1747367925374,5.7909,172.65,172.61,5.7918]
[1747367925979,67.4105,172.66,172.62,5.7915]
[1747367926272,61.56,172.66,172.57,61.62]
[1747367926468,61.56,172.66,172.57,123.18]
[1747367927679,67.4097,172.68,172.57,123.18]
[1747367927875,67.4097,172.68,172.59,6.78570492]
[1747367928067,128.9697,172.68,172.6,1.9073]
[1747367929186,67.4097,172.68,172.6,1.9073]
[1747367929376,128.9497,172.68,172.61,3.9784]
[1747367930183,5.79,172.67,172.63,5.7913]
[1747367931674,123.16,172.68,172.56,68.40570492]
[1747367932384,5.7915,172.63,172.59,5.7926]
[1747367934182,5.7917,172.62,172.59,5.7926]